Cogmind - Beta 13 @@@ ROGUE MODE // 2024.04.08 @ 12:41:48 Player: Mr.Morel Result: Destroyed by G-34 Mercenary with Small Laser Performance ------------- Evolutions (1) 500 Regions Visited (4) 800 Robots Destroyed (9) 45 Value Destroyed (307) 307 Prototype IDs (2) 40 Alien Tech Used (0) 0 Bonus (0) 0 TOTAL SCORE: 1692 Bonus ------- None Cogmind --------- Core Integrity 0/400 Matter 300/300 Energy 99/100 System Corruption 2% Temperature Cool (6) Movement Core (100) Ox1 Location -9/Mines Parts ------- > --- POWER (1) -------- (None) > --- PROPULSION (4) --- (None) > --- UTILITY (2) ------ Small Storage Unit > --- WEAPON (2) ------- (None) > --- INVENTORY (8) ---- (None) Peak State ------------ > --- POWER ------------ Ion Engine > --- PROPULSION ------- Hover Unit Hover Unit > --- UTILITY ---------- Weight Redist. System Propulsion Shielding > --- WEAPON ----------- EM Pulse Gun Small Laser > --- INVENTORY -------- Aluminum Leg Aluminum Leg Grenade Launcher [Rating: 8] Favorites ----------- Power Ion Engine Engine Ion Engine Propulsion Aluminum Leg Leg Aluminum Leg Hover Unit Hover Unit Utility Small Storage Unit Device Weight Redist. System Storage Small Storage Unit Protection Propulsion Shielding Weapon EM Pulse Gun Energy Gun EM Pulse Gun Ballistic Gun Assault Rifle Launcher Grenade Launcher Build | -11 -10 -10 -9 -9 ------- Run | Yrd Mat Min Mat Min Slots Evolved 2 | . . . 2 . Power . | . . . . . Propulsion 2 | . . . 2 . Utility . | . . . . . Weapon . | . . . . . Parts Attached 25 | 7 8 2 6 2 Power 1 | 1 . . . . Engine 1 | 1 . . . . Core . | . . . . . Reactor . | . . . . . Propulsion 10 | 2 2 2 2 2 Treads . | . . . . . Leg 8 | 2 . 2 2 2 Wheel . | . . . . . Hover 2 | . 2 . . . Flight . | . . . . . Utility 5 | 1 2 . 2 . Device 1 | . 1 . . . Storage 2 | 1 . . 1 . Processor . | . . . . . Hackware . | . . . . . Protection 2 | . 1 . 1 . Artifact . | . . . . . Weapon 9 | 3 4 . 2 . Energy Gun 6 | 2 3 . 1 . Energy Cannon . | . . . . . Ballistic Gun 1 | 1 . . . . Ballistic Cannon . | . . . . . Launcher 2 | . 1 . 1 . Special Weapon . | . . . . . Impact Weapon . | . . . . . Slashing Weapon . | . . . . . Piercing Weapon . | . . . . . Special Melee Weapon . | . . . . . Unidentified Prototypes . | . . . . . Parts Lost 15 | . . 5 5 5 Power 1 | . . 1 . . Propulsion 8 | . . 2 2 4 Utility 2 | . . 1 1 . Weapon 4 | . . 1 2 1 Highest Loss Streak 5 | . . 5 3 5 To Critical Strikes . | . . . . . Average Slot Usage (%) 72 | . 87 83 70 37 Engine 5 | . 14 8 . . Leg 23 | . 12 7 38 20 Hover 7 | . 15 17 . . Device 3 | . 6 8 . . Storage 7 | . 6 . 9 11 Protection 6 | . 3 14 9 . Energy Gun 12 | . 19 26 6 6 Ballistic Gun 2 | . 6 . . . Launcher 3 | . 2 . 7 . Naked Turns . | . . . . . Heaviest Build 14 | 14 14 9 10 8 Greatest Support 40 | 20 20 20 40 40 Greatest Overweight (x) 1 | . . 1 . 1 Average Overweight (x) . | . . . . . Largest Inventory Capacity 8 | 8 8 5 8 8 Average Capacity 6 | 6 6 5 7 8 Most Carried 5 | 5 5 4 2 2 Average Carried 1 | 1 2 3 1 1 Final Capacity 8 | 8 5 5 8 8 Final Carried 4 | 1 4 2 2 . Class Distribution -------------------- 100% | Mutant Dominant Class ---------------- Mutant | -10/Materials Mutant | -10/Mines Mutant | -9/Materials Mutant | -9/Mines Resources | -11 -10 -10 -9 -9 ----------- Run | Yrd Mat Min Mat Min Matter Collected 327 | 246 81 . . . Remotely . | . . . . . Salvage Created 238 | . 110 . 105 23 Parts 22 | . 11 . 8 3 Haulers Intercepted 1 | . 1 . . . Recyclers Shooed 2 | . 1 1 . . Parts Field Recycled . | . . . . . Retrieved Matter . | . . . . . Parts Self-Destructed . | . . . . . Prevented . | . . . . . Kills | -11 -10 -10 -9 -9 ------- Run | Yrd Mat Min Mat Min Combat Hostiles Destroyed 7 | . 2 . 4 1 Melee 1 | . . . 1 . Guns 1 | . . . 1 . AOE 5 | . 2 . 2 1 Classes Destroyed 4 | . 3 . 1 . Hauler 1 | . 1 . . . Operator 1 | . 1 . . . Grunt 6 | . 2 . 3 1 Sentry 1 | . . . 1 . Best Kill Streak 3 | . 2 . 3 1 Combat Bots Only 3 | . 2 . 3 1 Max Kills in Single Turn 1 | . 1 . 1 1 Gunslinging . | . . . . . Exploded 1 | . 1 . 1 1 Melee 1 | . . . 1 . Uniques/NPCs Destroyed . | . . . . . Combat | -11 -10 -10 -9 -9 -------- Run | Yrd Mat Min Mat Min Hostile Shots Fired 159 | . 7 26 51 75 Missed 62 | . 5 6 22 29 Damage Taken 1489 | . 100 347 451 591 Core 520 | . 26 90 87 317 Absorbed by Shields . | . . . . . Redirected to Shielding 97 | . 11 35 51 . Core Remaining (%) 76 | 100 . 53 . . Volleys Fired 20 | . 11 . 6 3 Largest 2 | . 2 . 2 1 Hottest 80 | . 80 . 70 45 Shots Fired 33 | . 22 . 8 3 Gun 28 | . 20 . 5 3 Cannon . | . . . . . Launcher 5 | . 2 . 3 . Special . | . . . . . Kinetic 3 | . 3 . . . Thermal 8 | . 6 . 2 . Explosive 5 | . 2 . 3 . Electromagnetic 17 | . 11 . 3 3 Robot Hit Streak 6 | . 4 . 6 1 Robot Miss Streak 4 | . 4 . . 1 Penetration Max . | . . . . . Secondary Targets . | . . . . . Shots Hit Robots 17 | . 12 . 4 1 Core Hits 25 | . 6 2 8 9 Critical Kills . | . . . . . Critical Parts Destroyed . | . . . . . Critical Strikes . | . . . . . Melee Attacks . | . . . . . Impact . | . . . . . Slashing . | . . . . . Piercing . | . . . . . Sneak Attacks . | . . . . . Combat Hostiles . | . . . . . Follow-up Attacks . | . . . . . Damage Inflicted 783 | . 256 30 374 123 Guns 190 | . 126 . 47 17 Cannons . | . . . . . Explosions 477 | . 126 . 306 45 Melee . | . . . . . Ramming 116 | . 4 30 21 61 Kinetic . | . . . . . Thermal 90 | . 45 . . 45 Explosive 432 | . 126 . 306 . Electromagnetic 145 | . 81 . 47 17 Impact . | . . . . . Slashing . | . . . . . Piercing . | . . . . . Highest Corruption 2 | . . . . 2 Average Corruption 1 | . . . . 1 Corruption Purged . | . . . . . Corruption Blocked . | . . . . . Overload Shots . | . . . . . Overflow Damage 20 | . . . 20 . Projectiles . | . . . . . Explosions 20 | . . . 20 . Melee . | . . . . . Knockbacks . | . . . . . Impact . | . . . . . Kinetic . | . . . . . Secondary . | . . . . . Self-Inflicted Damage 200 | . 78 7 112 3 Shots 4 | . 1 . 3 . Rammed 13 | . . 4 . 9 Targets Rammed 63 | . 1 15 8 39 Kicked 50 | . 1 11 8 30 Crushed . | . . . . . Highest Temperature 84 | . 84 . 1 9 Average Temperature 27 | . 31 . 1 5 Received Heat Transfer 492 | . 12 . 147 333 Siege Activations . | . . . . . Robots Corrupted . | . . . . . Combat Hostiles . | . . . . . Parts Fried . | . . . . . Impact Corruptions . | . . . . . Robots Melted . | . . . . . Combat Hostiles . | . . . . . Parts Melted . | . . . . . Heat Transferred 200 | . 100 . . 100 Parts Sabotaged . | . . . . . Parts Stolen . | . . . . . Parts Stripped . | . . . . . Power Chain Reactions . | . . . . . Alert | -11 -10 -10 -9 -9 ------- Run | Yrd Mat Min Mat Min Peak Influence 281 | . 281 109 251 127 Initial 109 | . . 109 28 85 Average 105 | . 99 92 135 91 Maximum Alert Level 1 | . 1 . 1 . Low Security (%) 84 | 100 77 100 78 100 Level 1 15 | . 22 . 21 . Level 2 . | . . . . . Level 3 . | . . . . . Level 4 . | . . . . . Level 5 . | . . . . . High Security . | . . . . . Max Security . | . . . . . Squads Dispatched 3 | . 3 . . . Investigation 1 | . 1 . . . Extermination . | . . . . . Reinforcement 2 | . 2 . . . Assault . | . . . . . Garrison . | . . . . . Intercept . | . . . . . Searches Triggered . | . . . . . Construction Impeded . | . . . . . Haulers Reinforced . | . . . . . Active Scanning Responses . | . . . . . Cargo Convoy Interrupts . | . . . . . Stealth | -11 -10 -10 -9 -9 --------- Run | Yrd Mat Min Mat Min Distress Signals 4 | . 2 . 2 . Communications Jammed . | . . . . . Distress Signals . | . . . . . Times Spotted 45 | . 12 12 18 3 Peak Tracking Total 13 | . 5 13 9 3 Tactical Retreats 7 | . 3 2 2 . Traps | -11 -10 -10 -9 -9 ------- Run | Yrd Mat Min Mat Min Traps Triggered 1 | . 1 . . . Indirectly . | . . . . . Trap Hack Attempts . | . . . . . Triggered . | . . . . . Disarmed . | . . . . . Reprogrammed . | . . . . . Reused . | . . . . . Traps Extracted . | . . . . . Installed . | . . . . . Triggered . | . . . . . Machines | -11 -10 -10 -9 -9 ---------- Run | Yrd Mat Min Mat Min Machines Disabled 4 | . 2 . 1 1 Max in Single Turn 1 | . 1 . 1 1 Machines Repaired . | . . . . . Machines Dismantled . | . . . . . Machines Sabotaged . | . . . . . Overloaded Fab Kills . | . . . . . Hacking | -11 -10 -10 -9 -9 --------- Run | Yrd Mat Min Mat Min Machines Accessed 4 | . 4 . . . Terminals 4 | . 4 . . . Fabricators . | . . . . . Repair Stations . | . . . . . Recycling Units . | . . . . . Scanalyzers . | . . . . . Garrison Access . | . . . . . Total Hacks 9 | . 9 . . . Successful 7 | . 7 . . . Failed 2 | . 2 . . . Catastrophic . | . . . . . Database Lockouts . | . . . . . Manual . | . . . . . Terminals 9 | . 9 . . . Fabricators . | . . . . . Repair Stations . | . . . . . Recycling Units . | . . . . . Scanalyzers . | . . . . . Garrison Access . | . . . . . Terminal Hacks 7 | . 7 . . . Record 1 | . 1 . . . Prototype ID Bank 1 | . 1 . . . Branch Access Points 1 | . 1 . . . Dispatch Records 1 | . 1 . . . Maintenance Status 1 | . 1 . . . Zone Layout 2 | . 2 . . . Fabricator Hacks . | . . . . . Repair Station Hacks . | . . . . . Recycling Unit Hacks . | . . . . . Scanalyzer . | . . . . . Garrison Access Hacks . | . . . . . Unauthorized Hacks . | . . . . . Terminals . | . . . . . Fabricators . | . . . . . Repair Stations . | . . . . . Recycling Units . | . . . . . Scanalyzers . | . . . . . Garrison Access . | . . . . . Data Cores Recovered . | . . . . . Used . | . . . . . Hacking Detections 3 | . 3 . . . Full Trace Events . | . . . . . Feedback Events . | . . . . . Feedback Blocked . | . . . . . Robot Schematics Acquired . | . . . . . Robots Built . | . . . . . Authchips . | . . . . . Time . | . . . . . Total Robot Build Rating . | . . . . . Part Schematics Acquired . | . . . . . Parts Built . | . . . . . Authchips . | . . . . . Time . | . . . . . Total Part Build Rating . | . . . . . Parts Repaired . | . . . . . Time . | . . . . . Parts Recycled . | . . . . . Recycled Matter . | . . . . . Retrieved Matter . | . . . . . Retrieved Components . | . . . . . Parts Scanalyzed . | . . . . . Part Schematics Acquired . | . . . . . Parts Damaged . | . . . . . Bothacking | -11 -10 -10 -9 -9 ------------ Run | Yrd Mat Min Mat Min Used RIF Installer . | . . . . . Robots Hacked . | . . . . . Non-combat . | . . . . . Combat . | . . . . . Robot Hacks Applied . | . . . . . Relay Couplers Released . | . . . . . Fabnet Peak Effective % . | . . . . . Robots Rewired . | . . . . . Allies Hacked . | . . . . . Hacks Repelled . | . . . . . Allies | -11 -10 -10 -9 -9 -------- Run | Yrd Mat Min Mat Min Total Allies . | . . . . . Largest Group . | . . . . . Highest-Rated Group . | . . . . . Highest-Rated Ally . | . . . . . Total Orders . | . . . . . Ally Attacks . | . . . . . Total Damage . | . . . . . Kills . | . . . . . Allies Corrupted . | . . . . . Allies Melted . | . . . . . Intel | -11 -10 -10 -9 -9 ------- Run | Yrd Mat Min Mat Min Robot Analysis Total . | . . . . . Derelict Logs Recovered . | . . . . . Drone Launches . | . . . . . Drone Recoveries . | . . . . . Exploration | -11 -10 -10 -9 -9 ------------- Run | Yrd Mat Min Mat Min Turns Passed 971 | 57 318 83 374 139 Spaces Moved 852 | 45 355 98 282 72 Core 27 | 16 . 10 . 1 Treads . | . . . . . Legs 490 | 29 100 8 282 71 Wheels . | . . . . . Hover 335 | . 255 80 . . Flight . | . . . . . Fastest Speed 50 | 50 56 56 120 100 Average Speed 93 | 95 74 66 120 119 Slowest Speed 120 | 120 120 120 120 120 Overloaded Moves . | . . . . . Propulsion Burnouts . | . . . . . Robots Hopped . | . . . . . Cave-ins Triggered . | . . . . . Exploration Rate (%) 26 | 3 67 16 32 14 Regions Visited 4 Branch Regions 2 Pre-discovered Areas 1 | . . . . 1 Known Exits Taken 1 | . 1 . . . Unknown Exits Taken 3 | 1 . 1 1 . Scrap Searched . | . . . . . Spaces Dug . | . . . . . Terrain Destroyed 99 | . 38 . 54 7 Melee . | . . . . . Projectile . | . . . . . AOE 99 | . 38 . 54 7 Terrain Rammed . | . . . . . Walls Destroyed . | . . . . . Machines Disabled . | . . . . . Actions | -11 -10 -10 -9 -9 --------- Run | Yrd Mat Min Mat Min Total 982 | 58 386 114 308 116 Wait . | . . . . . Move 848 | 44 354 97 281 72 Hop . | . . . . . Pick Up 21 | 7 8 . 6 . Fast Attach . | . . . . . Attach 17 | 6 2 2 5 2 Detach . | . . . . . Swap 8 | 1 6 . 1 . Drop 5 | . 4 . 1 . Fire 20 | . 11 . 6 3 Melee . | . . . . . Ram 13 | . . 4 . 9 Kick 50 | . 1 11 8 30 Crush . | . . . . . Escape Stasis . | . . . . . Rewire . | . . . . . Trap . | . . . . . Miscellaneous . | . . . . . Route ------- -11/Scrapyard -10/Materials (discovered 4 exits: [*Mat x2] / *Min x2) -10/Mines -9/Materials -9/Mines History --------- Turn | Location | Event 5 | -11/Scrapyard | Discovered new exit (range 16) 58 | -11/Scrapyard | Entered Materials 207 | -10/Materials | Discovered new exit (range 18) 241 | -10/Materials | Discovered new exit (range 9) 241 | -10/Materials | Identified exit to Mines 270 | -10/Materials | Discovered new exit (range 15) 314 | -10/Materials | Build established: Mutant 376 | -10/Materials | Entered Mines 396 | -10/Mines | Assembled infested the area 435 | -10/Mines | Discovered new exit (range 11) 459 | -10/Mines | Entered Materials 459 | -9/Materials | Evolved 2 slots: Propulsion x2 479 | -9/Materials | Lost 5 parts (1p2n1u1w) 651 | -9/Materials | Discovered new exit (range 13) 833 | -9/Materials | Entered Mines 834 | -9/Mines | Learned location of Storage (-7) 859 | -9/Mines | Lost 3 parts (2n1u) 939 | -9/Mines | Core integrity fell below 50% 959 | -9/Mines | Core integrity fell below 20% 972 | -9/Mines | Destroyed by G-34 Mercenary with Small Laser Last Messages --------------- Kicked G-34 Mercenary out of the way. Aluminum Leg destroyed. Kicked G-34 Mercenary out of the way. Kicked G-34 Mercenary. Aluminum Leg destroyed. Kicked G-34 Mercenary. Kicked G-34 Mercenary out of the way. Kicked G-34 Mercenary. Kicked G-34 Mercenary out of the way. Kicked G-34 Mercenary. Kicked G-34 Mercenary out of the way. Kicked G-34 Mercenary. Kicked G-34 Mercenary out of the way. Kicked G-34 Mercenary. Aluminum Leg destroyed. Slammed into G-34 Mercenary. Destabilizing: System corrupted (+1). Slammed into G-34 Mercenary. Destabilizing: System corrupted (+1). Slammed into G-34 Mercenary. Map ----- +----------------------------------------------------+ | | | | | | | | | | | | | | | | | | | | | ?????????????????????????????????? | | ????????????##########???????????? | | ???????????## ##??????????? | | ??????????## #??????????? | | ??????????# #??????????? | | ????####### #???????????? | | ???## ## #####???????????? | | ??## ##???????????????? | | ??# #????????????????? | | ??# ##???????????????? | | ??## #???????????????? | | ???### #???????????????? | | ???### #???????????????? | | ??##;; ##???????????????? | | ??#;; #####????????????????? | | ??#; @%##????????????????????? | | ??#; %%g#?????????????????????? | | ??#; %%%#?????????????????????? | | ??# =%%#?????????????????????? | | ??# g!##?????????????????????? | | ??# [ ##?????????????????????? | | ??# ##????????????????????? | | ??## #????????????????????? | | ???### #????????????????????? | | ?????# ##????????????????????? | | ?????# ####?????????????????????? | | ?????# #????????????????????????? | | ?????# #????????###?????????????? | | ?????# ### #??????????? | | ?????# #???????????????? | | ?????## ## #???????????????? | | ??????# ##? ##???????????????? | | ?????## ##?###??????????????????? | | ?????# ##?????????????????????? | | ?????# #?????????????????????? | | ?????# #?????????????????????? | | ?????# ##?????????????????????? | | ?????## ##??????????????????????? | | ??????####???????????????????????? | | ?????????????????????????????????? | +----------------------------------------------------+ Best States ------------- Heat Dissipation 28 Energy Generation 10 Energy Capacity 250 Matter Stores 300 Matter Capacity 300 Sight Range 16 Terrain Scan Density 10 Additional Mass Support 6 Propulsion Shielding 33 Evasion (%) 55 Item Schematics ----------------- None Robot Schematics ------------------ None Fabricated ------------ Nothing Alien Tech Used ----------------- None Achievements -------------- I Survived The Infestation Challenges ------------ None Game ------ Seed DeuteriumGodMace Manual? 0 Play Time 00:13:40 Cumulative 7.2 hours Start 2024.04.08 @ 12:29:09 End 2024.04.08 @ 12:41:48 Sessions 1 Manual Loads 0 Difficulty Rogue Special Mode None Game No. 17 Rogue 17 Adventurer 0 Explorer 0 Win Type - Total 0 Types 0/0/0/0/0/0/0/0/0 Lore% 9 Gallery% 13 Achievement% 11 Wizard Run 0 Options --------- Layout 2 ASCII 0 Keyboard 0 Movement Arrows Keybinds 0 Fullscreen 1 Font 24/Cog Map View 50x44 Zoom Use 0% Tactical HUD 0 Map Filters NONE Filters NONE Steam 1 RUN: b7001d87-3ff4-439d-9e0d-51c3392c0010